[Event "*** Titled Tuesday Blitz"]
[Site "Chess.com"]
[Date "2020.05.05"]
[Round "4"]
[White "TargetA"]
[Black "youngKID"]
[Result "0-1"]
[WhiteElo "2523"]
[BlackElo "2791"]
[TimeControl "180+1"]
[EndTime "10:41:24 PDT"]
[Termination "youngKID won by resignation"]

1. e4 {[%clk 0:02:59.6]} 1... c5 {[%clk 0:02:59.1]} 2. Nf3 {[%clk 0:02:58.6]}
2... Nc6 {[%clk 0:02:59.2]} 3. Nc3 {[%clk 0:02:56.8]} 3... e6 {[%clk 0:02:56.5]}
4. d4 {[%clk 0:02:56.3]} 4... cxd4 {[%clk 0:02:57.1]} 5. Nxd4 {[%clk 0:02:56.8]}
5... Nf6 {[%clk 0:02:57.8]} 6. Nxc6 {[%clk 0:02:56.2]} 6... bxc6 {[%clk
0:02:57.8]} 7. e5 {[%clk 0:02:56.5]} 7... Nd5 {[%clk 0:02:58.3]} 8. Ne4 {[%clk
0:02:57]} 8... Qc7 {[%clk 0:02:58.7]} 9. f4 {[%clk 0:02:57.1]} 9... Rb8 {[%clk
0:02:58.9]} 10. c4 {[%clk 0:02:50.6]} 10... Bb4+ {[%clk 0:02:58.8]} 11. Ke2
{[%clk 0:02:41.1]} 11... O-O {[%clk 0:02:58.3]} 12. cxd5 {[%clk 0:02:36.4]}
12... exd5 {[%clk 0:02:57.9]} 13. Ng3 {[%clk 0:02:32.5]} 13... d6 {[%clk
0:02:53.3]} 14. Kf3 {[%clk 0:02:05.9]} 14... dxe5 {[%clk 0:02:47.5]} 15. fxe5
{[%clk 0:02:06.8]} 15... Be6 {[%clk 0:02:39.4]} 16. Bf4 {[%clk 0:01:59.7]} 16...
f6 {[%clk 0:02:38]} 17. exf6 {[%clk 0:01:55]} 17... Rxf6 {[%clk 0:02:37.8]} 18.
Nh5 {[%clk 0:01:55.4]} 18... Rf7 {[%clk 0:02:23.1]} 19. g3 {[%clk 0:01:24.3]}
19... Bd6 {[%clk 0:01:58.7]} 20. Bd3 {[%clk 0:01:08.5]} 20... g6 {[%clk
0:01:24.3]} 21. Re1 {[%clk 0:00:58.2]} 21... Bh3 {[%clk 0:01:13.1]} 22. Qc2
{[%clk 0:00:35.1]} 22... Qd7 {[%clk 0:00:40.7]} 23. Ke3 {[%clk 0:00:16]} 23...
gxh5 {[%clk 0:00:37.2]} 24. Bxh7+ {[%clk 0:00:15.5]} 24... Kh8 {[%clk
0:00:34.1]} 25. Bg6 {[%clk 0:00:13.3]} 25... Bxf4+ {[%clk 0:00:09.6]} 26. gxf4
{[%clk 0:00:12.2]} 26... Rf6 {[%clk 0:00:07.4]} 27. Kd2 {[%clk 0:00:08.1]} 27...
Qd6 {[%clk 0:00:05.6]} 28. Re5 {[%clk 0:00:07.5]} 28... Rxg6 {[%clk 0:00:04.5]}
29. Rae1 {[%clk 0:00:07.4]} 29... Rg2+ {[%clk 0:00:04.1]} 30. R1e2 {[%clk
0:00:08]} 30... Rxe2+ {[%clk 0:00:04.7]} 31. Kxe2 {[%clk 0:00:08.9]} 31... Bg4+
{[%clk 0:00:03.2]} 32. Kf2 {[%clk 0:00:08.2]} 32... Qf6 {[%clk 0:00:03.3]} 33.
Kg3 {[%clk 0:00:08.1]} 33... Rf8 {[%clk 0:00:02.7]} 34. Qd2 {[%clk 0:00:07.6]}
34... Rg8 {[%clk 0:00:03.1]} 35. Qd4 {[%clk 0:00:07.4]} 35... Bf5+ {[%clk
0:00:02.3]} 36. Kf2 {[%clk 0:00:07.3]} 36... Kh7 {[%clk 0:00:02.7]} 37. Ke3
{[%clk 0:00:06.3]} 37... Rg7 {[%clk 0:00:02.6]} 38. Qc5 {[%clk 0:00:05.7]} 38...
Qg6 {[%clk 0:00:02.8]} 39. Kd2 {[%clk 0:00:03.7]} 39... Qg2+ {[%clk 0:00:03.2]}
40. Kc3 {[%clk 0:00:04.1]} 40... Qf3+ {[%clk 0:00:03.4]} 41. Kb4 {[%clk
0:00:04.2]} 41... Qxf4+ {[%clk 0:00:03.8]} 42. Ka3 {[%clk 0:00:03.5]} 42... Qxe5
{[%clk 0:00:04.2]} 43. b3 {[%clk 0:00:03.4]} 43... Qe7 {[%clk 0:00:04.1]} 0-1

[Event "*** Titled Tuesday Blitz"]
[Site "Chess.com"]
[Date "2020.05.05"]
[Round "4"]
[White "DrBergerBerger"]
[Black "jlucasvf"]
[Result "1-0"]
[WhiteElo "2490"]
[BlackElo "2655"]
[TimeControl "180+1"]
[EndTime "10:41:24 PDT"]
[Termination "DrBergerBerger won by resignation"]

1. e4 {[%clk 0:03:00.9]} 1... e5 {[%clk 0:02:59.8]} 2. Nf3 {[%clk 0:02:58.2]}
2... Nf6 {[%clk 0:02:59.7]} 3. d4 {[%clk 0:02:56.3]} 3... Nxe4 {[%clk
0:02:59.5]} 4. Bd3 {[%clk 0:02:56.1]} 4... Nc6 {[%clk 0:02:59.2]} 5. dxe5 {[%clk
0:02:21.1]} 5... d5 {[%clk 0:02:58.8]} 6. exd6 {[%clk 0:02:20.2]} 6... Nxd6
{[%clk 0:02:54]} 7. O-O {[%clk 0:02:19.7]} 7... Be7 {[%clk 0:02:53.8]} 8. Nc3
{[%clk 0:02:18.3]} 8... Be6 {[%clk 0:02:50.5]} 9. Bf4 {[%clk 0:02:12.1]} 9...
Qd7 {[%clk 0:02:49.2]} 10. Ne4 {[%clk 0:02:05.9]} 10... Nxe4 {[%clk 0:02:47.8]}
11. Bxe4 {[%clk 0:02:06.8]} 11... O-O-O {[%clk 0:02:47.1]} 12. Qxd7+ {[%clk
0:02:02.2]} 12... Bxd7 {[%clk 0:02:47.1]} 13. Rad1 {[%clk 0:01:59.5]} 13... Rhe8
{[%clk 0:02:44.3]} 14. Rfe1 {[%clk 0:01:53.7]} 14... h6 {[%clk 0:02:38.9]} 15.
h3 {[%clk 0:01:53.2]} 15... Bf6 {[%clk 0:02:33.2]} 16. c3 {[%clk 0:01:41.8]}
16... Be6 {[%clk 0:02:23.5]} 17. Rxd8+ {[%clk 0:01:23.5]} 17... Rxd8 {[%clk
0:02:23]} 18. Bxc6 {[%clk 0:01:21.2]} 18... bxc6 {[%clk 0:02:22.6]} 19. a3
{[%clk 0:01:21.4]} 19... c5 {[%clk 0:02:07.6]} 20. Be5 {[%clk 0:01:19.4]} 20...
Kb7 {[%clk 0:02:03.9]} 21. Bxf6 {[%clk 0:01:18.3]} 21... gxf6 {[%clk 0:02:04.8]}
22. Re2 {[%clk 0:01:11.5]} 22... Kc6 {[%clk 0:02:04.2]} 23. Kh2 {[%clk
0:01:06.4]} 23... Rd1 {[%clk 0:01:41.1]} 24. Kg3 {[%clk 0:00:56.7]} 24... Kb5
{[%clk 0:01:34.5]} 25. Kf4 {[%clk 0:00:55.5]} 25... Kc4 {[%clk 0:01:32.1]} 26.
Rd2 {[%clk 0:00:47.2]} 26... Rxd2 {[%clk 0:00:59]} 27. Nxd2+ {[%clk 0:00:48.1]}
27... Kd3 {[%clk 0:00:59.7]} 28. Ne4 {[%clk 0:00:48]} 28... c4 {[%clk
0:00:44.9]} 29. Nxf6 {[%clk 0:00:34.9]} 29... Kc2 {[%clk 0:00:44.4]} 30. Ne4
{[%clk 0:00:26.3]} 30... Kxb2 {[%clk 0:00:38.3]} 31. a4 {[%clk 0:00:26.4]} 31...
a5 {[%clk 0:00:37.5]} 32. Ke5 {[%clk 0:00:24.1]} 32... Bd7 {[%clk 0:00:33.1]}
33. Nc5 {[%clk 0:00:24]} 33... Bc6 {[%clk 0:00:15.4]} 34. Kd4 {[%clk 0:00:23.6]}
34... Bxg2 {[%clk 0:00:15.6]} 35. h4 {[%clk 0:00:23.4]} 35... Bf1 {[%clk
0:00:15.8]} 36. f4 {[%clk 0:00:23]} 36... Bd3 {[%clk 0:00:12.5]} 37. Nb7 {[%clk
0:00:16.4]} 37... Ka3 {[%clk 0:00:12.2]} 38. Nxa5 {[%clk 0:00:16.1]} 38... Kxa4
{[%clk 0:00:11.9]} 39. Nxc4 {[%clk 0:00:16.2]} 39... Bxc4 {[%clk 0:00:06.5]} 40.
Kxc4 {[%clk 0:00:17.1]} 40... Ka3 {[%clk 0:00:07]} 41. Kd5 {[%clk 0:00:16.1]}
41... Kb3 {[%clk 0:00:05.9]} 42. c4 {[%clk 0:00:16.4]} 42... Kb4 {[%clk
0:00:05.4]} 43. c5 {[%clk 0:00:15.2]} 43... Kb5 {[%clk 0:00:04]} 44. f5 {[%clk
0:00:11.9]} 44... h5 {[%clk 0:00:01.4]} 45. Ke5 {[%clk 0:00:05.1]} 45... Kxc5
{[%clk 0:00:01.5]} 46. Kf6 {[%clk 0:00:05.4]} 46... Kd6 {[%clk 0:00:02]} 47.
Kxf7 {[%clk 0:00:05.7]} 47... c5 {[%clk 0:00:02.9]} 48. Kg6 {[%clk 0:00:04.8]}
48... c4 {[%clk 0:00:03.8]} 49. f6 {[%clk 0:00:05.1]} 49... c3 {[%clk
0:00:04.7]} 50. f7 {[%clk 0:00:05.3]} 50... Ke7 {[%clk 0:00:04.6]} 51. Kg7
{[%clk 0:00:05]} 1-0

[Event "*** Titled Tuesday Blitz"]
[Site "Chess.com"]
[Date "2020.05.05"]
[Round "4"]
[White "HarutyunianTigranK"]
[Black "MrTattaglia"]
[Result "0-1"]
[WhiteElo "2709"]
[BlackElo "2962"]
[TimeControl "180+1"]
[EndTime "10:41:25 PDT"]
[Termination "MrTattaglia won on time"]

1. c4 {[%clk 0:03:00.7]} 1... Nf6 {[%clk 0:02:57.9]} 2. Nc3 {[%clk 0:03:00.7]}
2... e6 {[%clk 0:02:57.7]} 3. e4 {[%clk 0:03:00.6]} 3... e5 {[%clk 0:02:50.4]}
4. Nf3 {[%clk 0:02:58.5]} 4... Nc6 {[%clk 0:02:50.4]} 5. Be2 {[%clk 0:02:55.6]}
5... Bb4 {[%clk 0:02:46.9]} 6. d3 {[%clk 0:02:53.7]} 6... Bxc3+ {[%clk
0:02:43.8]} 7. bxc3 {[%clk 0:02:53.7]} 7... d6 {[%clk 0:02:44.3]} 8. O-O {[%clk
0:02:53.3]} 8... O-O {[%clk 0:02:42.3]} 9. Bg5 {[%clk 0:02:52.9]} 9... h6 {[%clk
0:02:42.6]} 10. Bh4 {[%clk 0:02:52.9]} 10... b6 {[%clk 0:02:36.7]} 11. Qd2
{[%clk 0:02:47.9]} 11... Qe7 {[%clk 0:02:33.2]} 12. h3 {[%clk 0:02:30.4]} 12...
Re8 {[%clk 0:02:24.6]} 13. Qe3 {[%clk 0:02:30.3]} 13... Qe6 {[%clk 0:02:18.9]}
14. Nd2 {[%clk 0:02:26.8]} 14... g5 {[%clk 0:02:19]} 15. Bg3 {[%clk 0:02:25.7]}
15... Ne7 {[%clk 0:02:17.3]} 16. h4 {[%clk 0:02:19]} 16... Ng4 {[%clk
0:02:13.3]} 17. Qf3 {[%clk 0:02:10.5]} 17... Ng6 {[%clk 0:02:11.2]} 18. h5
{[%clk 0:01:46.6]} 18... Nf8 {[%clk 0:01:51.1]} 19. d4 {[%clk 0:01:29.1]} 19...
Nh7 {[%clk 0:01:42.2]} 20. c5 {[%clk 0:01:29.1]} 20... Nhf6 {[%clk 0:01:37.8]}
21. cxd6 {[%clk 0:00:45.4]} 21... cxd6 {[%clk 0:01:36.6]} 22. Rfd1 {[%clk
0:00:36.4]} 22... Nxh5 {[%clk 0:01:33.1]} 23. dxe5 {[%clk 0:00:35.6]} 23... dxe5
{[%clk 0:01:21.7]} 24. Nc4 {[%clk 0:00:35.9]} 24... Nf4 {[%clk 0:01:02.5]} 25.
Bxf4 {[%clk 0:00:31.3]} 25... exf4 {[%clk 0:00:52.6]} 26. Nd6 {[%clk 0:00:30.7]}
26... Ne5 {[%clk 0:00:51.2]} 27. Qh5 {[%clk 0:00:30.3]} 27... Bd7 {[%clk
0:00:16.9]} 28. Nf5 {[%clk 0:00:30.2]} 28... Qf6 {[%clk 0:00:15.3]} 29. Rd6
{[%clk 0:00:18.9]} 29... Re6 {[%clk 0:00:14.9]} 30. Rad1 {[%clk 0:00:19.4]}
30... Rxd6 {[%clk 0:00:11.4]} 31. Rxd6 {[%clk 0:00:18.9]} 31... Be6 {[%clk
0:00:11.5]} 32. Nxh6+ {[%clk 0:00:19]} 32... Kf8 {[%clk 0:00:11.8]} 33. Nf5
{[%clk 0:00:18.8]} 33... Rc8 {[%clk 0:00:07.9]} 34. a4 {[%clk 0:00:13.6]} 34...
Ng6 {[%clk 0:00:05.9]} 35. Qh6+ {[%clk 0:00:13.2]} 35... Kg8 {[%clk 0:00:05.9]}
36. Bh5 {[%clk 0:00:08.6]} 36... Re8 {[%clk 0:00:03.9]} 37. Bxg6 {[%clk
0:00:08.8]} 37... fxg6 {[%clk 0:00:04.8]} 38. Nd4 {[%clk 0:00:06.8]} 38... g4
{[%clk 0:00:01.4]} 39. e5 {[%clk 0:00:06.8]} 39... Qf7 {[%clk 0:00:01.5]} 40.
Qg5 {[%clk 0:00:03.9]} 40... f3 {[%clk 0:00:01.2]} 41. g3 {[%clk 0:00:02.4]}
41... Kg7 {[%clk 0:00:01.5]} 42. a5 {[%clk 0:00:01.6]} 42... Re7 {[%clk
0:00:01.6]} 43. a6 {[%clk 0:00:01.6]} 43... b5 {[%clk 0:00:01.7]} 44. Nxb5
{[%clk 0:00:01.3]} 44... Bf5 {[%clk 0:00:02.1]} 0-1

[Event "*** Titled Tuesday Blitz"]
[Site "Chess.com"]
[Date "2020.05.05"]
[Round "4"]
[White "mjray79"]
[Black "NormWeinstein"]
[Result "0-1"]
[WhiteElo "2253"]
[BlackElo "2447"]
[TimeControl "180+1"]
[EndTime "10:41:25 PDT"]
[Termination "NormWeinstein won by checkmate"]

1. d4 {[%clk 0:03:00.9]} 1... c5 {[%clk 0:02:59.8]} 2. d5 {[%clk 0:02:59.6]}
2... e5 {[%clk 0:02:59.8]} 3. Nc3 {[%clk 0:02:58.8]} 3... d6 {[%clk 0:03:00.2]}
4. e4 {[%clk 0:02:59]} 4... Be7 {[%clk 0:03:00.5]} 5. g3 {[%clk 0:02:55.8]} 5...
Bg5 {[%clk 0:02:59.5]} 6. Bg2 {[%clk 0:02:56.7]} 6... Bxc1 {[%clk 0:02:58.8]} 7.
Qxc1 {[%clk 0:02:56.7]} 7... Nf6 {[%clk 0:02:58.8]} 8. Nge2 {[%clk 0:02:56]}
8... O-O {[%clk 0:02:57]} 9. O-O {[%clk 0:02:56.3]} 9... Nbd7 {[%clk 0:02:53.7]}
10. f4 {[%clk 0:02:52]} 10... Re8 {[%clk 0:02:52.7]} 11. a4 {[%clk 0:02:49.1]}
11... a6 {[%clk 0:02:48.6]} 12. Qe3 {[%clk 0:02:48.3]} 12... b6 {[%clk
0:02:40.5]} 13. Kh1 {[%clk 0:02:47.5]} 13... Rb8 {[%clk 0:02:38.6]} 14. f5
{[%clk 0:02:39.1]} 14... h6 {[%clk 0:02:35.4]} 15. h3 {[%clk 0:02:38.6]} 15...
Nh7 {[%clk 0:02:34.9]} 16. g4 {[%clk 0:02:37.2]} 16... Qg5 {[%clk 0:02:33.4]}
17. Qg3 {[%clk 0:02:34.7]} 17... h5 {[%clk 0:02:32]} 18. Rab1 {[%clk 0:02:18.8]}
18... Nhf6 {[%clk 0:02:18.7]} 19. Bf3 {[%clk 0:02:14.7]} 19... hxg4 {[%clk
0:02:16.7]} 20. hxg4 {[%clk 0:02:15.6]} 20... g6 {[%clk 0:02:13.6]} 21. Kg2
{[%clk 0:02:07.8]} 21... Kg7 {[%clk 0:02:12.6]} 22. b4 {[%clk 0:01:58.2]} 22...
Rh8 {[%clk 0:01:55.3]} 23. bxc5 {[%clk 0:01:52.3]} 23... Nxc5 {[%clk 0:01:50.6]}
24. Rh1 {[%clk 0:01:33.8]} 24... Rxh1 {[%clk 0:01:16.1]} 25. Rxh1 {[%clk
0:01:34.7]} 25... Bd7 {[%clk 0:01:15.6]} 26. Qh3 {[%clk 0:01:28]} 26... Bxa4
{[%clk 0:00:54.3]} 27. Nxa4 {[%clk 0:01:16.4]} 27... Nxa4 {[%clk 0:00:53.4]} 28.
c4 {[%clk 0:01:07.5]} 28... Nc5 {[%clk 0:00:49.2]} 29. fxg6 {[%clk 0:00:58.1]}
29... fxg6 {[%clk 0:00:46.1]} 30. Ng3 {[%clk 0:00:55.8]} 30... Nd3 {[%clk
0:00:40.1]} 31. Ne2 {[%clk 0:00:49.9]} 31... b5 {[%clk 0:00:33.8]} 32. cxb5
{[%clk 0:00:48.2]} 32... axb5 {[%clk 0:00:33.6]} 33. Kg3 {[%clk 0:00:42.8]}
33... Nf4 {[%clk 0:00:29.5]} 34. Qh2 {[%clk 0:00:40.1]} 34... b4 {[%clk
0:00:25.1]} 35. Rb1 {[%clk 0:00:27.3]} 35... b3 {[%clk 0:00:23.2]} 36. Nxf4
{[%clk 0:00:18.1]} 36... Qxf4+ {[%clk 0:00:22.2]} 37. Kg2 {[%clk 0:00:18.5]}
37... Qxh2+ {[%clk 0:00:20.7]} 38. Kxh2 {[%clk 0:00:19.4]} 38... b2 {[%clk
0:00:20.3]} 39. Kg3 {[%clk 0:00:19]} 39... Kh6 {[%clk 0:00:19.5]} 40. Kf2 {[%clk
0:00:18.9]} 40... Kg5 {[%clk 0:00:19.4]} 41. Ke2 {[%clk 0:00:18.1]} 41... Kf4
{[%clk 0:00:18.4]} 42. Bg2 {[%clk 0:00:13.3]} 42... Nxg4 {[%clk 0:00:17.1]} 43.
Kd3 {[%clk 0:00:12.3]} 43... Nf2+ {[%clk 0:00:16.4]} 44. Kc2 {[%clk 0:00:11.8]}
44... Kg3 {[%clk 0:00:13.9]} 45. Bh1 {[%clk 0:00:08.5]} 45... Nxh1 {[%clk
0:00:13.5]} 46. Rxh1 {[%clk 0:00:09.4]} 46... b1=Q+ {[%clk 0:00:12.1]} 47. Rxb1
{[%clk 0:00:10.3]} 47... Rxb1 {[%clk 0:00:10.6]} 48. Kxb1 {[%clk 0:00:11.2]}
48... Kf3 {[%clk 0:00:10.7]} 49. Kc2 {[%clk 0:00:12.1]} 49... Kxe4 {[%clk
0:00:11.3]} 50. Kb3 {[%clk 0:00:13]} 50... Kxd5 {[%clk 0:00:11.8]} 51. Kb4
{[%clk 0:00:13.9]} 51... e4 {[%clk 0:00:12.3]} 52. Kb5 {[%clk 0:00:14.4]} 52...
Kd4 {[%clk 0:00:12.5]} 53. Kb6 {[%clk 0:00:15.3]} 53... e3 {[%clk 0:00:13]} 54.
Kc7 {[%clk 0:00:16.2]} 54... e2 {[%clk 0:00:13.6]} 55. Kd8 {[%clk 0:00:17.1]}
55... e1=Q {[%clk 0:00:13.4]} 56. Kd7 {[%clk 0:00:18]} 56... Qe5 {[%clk
0:00:13.6]} 57. Kc7 {[%clk 0:00:17]} 57... d5+ {[%clk 0:00:14.1]} 58. Kd8 {[%clk
0:00:17.9]} 58... Qe6 {[%clk 0:00:14.2]} 59. Kc7 {[%clk 0:00:17.5]} 59... g5
{[%clk 0:00:13.8]} 60. Kd8 {[%clk 0:00:18.4]} 60... Qf7 {[%clk 0:00:13.8]} 61.
Kc8 {[%clk 0:00:17.9]} 61... Kc5 {[%clk 0:00:14.2]} 62. Kb8 {[%clk 0:00:18.8]}
62... Kb6 {[%clk 0:00:14]} 63. Kc8 {[%clk 0:00:19.7]} 63... Qc7# {[%clk
0:00:13.1]} 0-1

[Event "*** Titled Tuesday Blitz"]
[Site "Chess.com"]
[Date "2020.05.05"]
[Round "4"]
[White "Petrosyan_Tigran"]
[Black "KuzubovYuriy"]
[Result "1-0"]
[WhiteElo "2540"]
[BlackElo "2753"]
[TimeControl "180+1"]
[EndTime "10:41:28 PDT"]
[Termination "Petrosyan_Tigran won on time"]

1. Nf3 {[%clk 0:03:00.9]} 1... d5 {[%clk 0:02:59.3]} 2. d4 {[%clk 0:03:00.1]}
2... Nf6 {[%clk 0:02:58.3]} 3. c4 {[%clk 0:03:00]} 3... e6 {[%clk 0:02:58.5]} 4.
Nc3 {[%clk 0:02:58.8]} 4... Nbd7 {[%clk 0:02:58]} 5. Bf4 {[%clk 0:02:54.2]} 5...
dxc4 {[%clk 0:02:57.9]} 6. e3 {[%clk 0:02:53.6]} 6... Nd5 {[%clk 0:02:57.6]} 7.
Bxc4 {[%clk 0:02:52.6]} 7... Nxf4 {[%clk 0:02:57.5]} 8. exf4 {[%clk 0:02:53.5]}
8... Nb6 {[%clk 0:02:58.1]} 9. Bb3 {[%clk 0:02:49.7]} 9... g6 {[%clk 0:02:57.2]}
10. O-O {[%clk 0:02:42.5]} 10... Bg7 {[%clk 0:02:56.6]} 11. Qe2 {[%clk
0:02:30.1]} 11... O-O {[%clk 0:02:56.2]} 12. Rfd1 {[%clk 0:02:28.9]} 12... a5
{[%clk 0:02:48.6]} 13. a3 {[%clk 0:02:27.3]} 13... a4 {[%clk 0:02:46.6]} 14. Ba2
{[%clk 0:02:27]} 14... Bd7 {[%clk 0:02:38]} 15. Ne5 {[%clk 0:02:24]} 15... Bc6
{[%clk 0:02:30.9]} 16. Nxc6 {[%clk 0:02:14.7]} 16... bxc6 {[%clk 0:02:30.1]} 17.
Qe4 {[%clk 0:02:04.7]} 17... Nd5 {[%clk 0:02:20.5]} 18. Rac1 {[%clk 0:02:03.5]}
18... Qb8 {[%clk 0:02:08.9]} 19. Rc2 {[%clk 0:01:57]} 19... Nxc3 {[%clk
0:01:54]} 20. bxc3 {[%clk 0:01:57.6]} 20... Ra6 {[%clk 0:01:53.7]} 21. Rb1
{[%clk 0:01:27]} 21... Rb6 {[%clk 0:01:53.5]} 22. Rb4 {[%clk 0:01:23.6]} 22...
Rd8 {[%clk 0:01:26.9]} 23. g3 {[%clk 0:01:22.8]} 23... Rxb4 {[%clk 0:01:19.4]}
24. cxb4 {[%clk 0:01:23.5]} 24... Rxd4 {[%clk 0:01:11.8]} 25. Qxc6 {[%clk
0:01:23.3]} 25... Rd3 {[%clk 0:00:52.9]} 26. Qxa4 {[%clk 0:01:19]} 26... Bd4
{[%clk 0:00:44.7]} 27. Kg2 {[%clk 0:01:13]} 27... Qb7+ {[%clk 0:00:41.4]} 28.
Qc6 {[%clk 0:01:07]} 28... Qxc6+ {[%clk 0:00:38.9]} 29. Rxc6 {[%clk 0:01:07.9]}
29... Rxa3 {[%clk 0:00:39]} 30. Bc4 {[%clk 0:01:05.1]} 30... Rc3 {[%clk
0:00:30.5]} 31. Rxc7 {[%clk 0:00:59.1]} 31... Rc2 {[%clk 0:00:30.4]} 32. Kf3
{[%clk 0:00:58.8]} 32... Rxf2+ {[%clk 0:00:19.5]} 33. Ke4 {[%clk 0:00:58.8]}
33... Bf6 {[%clk 0:00:17.4]} 34. b5 {[%clk 0:00:56.9]} 34... Rd2 {[%clk
0:00:15.9]} 35. b6 {[%clk 0:00:53.8]} 35... Rb2 {[%clk 0:00:15]} 36. b7 {[%clk
0:00:53.6]} 36... Kg7 {[%clk 0:00:13.8]} 37. Bxe6 {[%clk 0:00:52.2]} 37... Kh6
{[%clk 0:00:10.1]} 38. Bxf7 {[%clk 0:00:50.9]} 38... Bd8 {[%clk 0:00:08.5]} 39.
Rd7 {[%clk 0:00:50.7]} 39... Ba5 {[%clk 0:00:07.8]} 40. Bg8 {[%clk 0:00:49.9]}
40... g5 {[%clk 0:00:07.5]} 41. Rxh7+ {[%clk 0:00:45.3]} 41... Kg6 {[%clk
0:00:07.6]} 42. fxg5 {[%clk 0:00:45.3]} 42... Kxg5 {[%clk 0:00:07.5]} 43. Be6
{[%clk 0:00:43.8]} 43... Kf6 {[%clk 0:00:07.4]} 44. Bd5 {[%clk 0:00:40.5]} 44...
Rb4+ {[%clk 0:00:07.2]} 45. Kd3 {[%clk 0:00:40]} 45... Ke5 {[%clk 0:00:06.4]}
46. Rd7 {[%clk 0:00:39.7]} 46... Rd4+ {[%clk 0:00:04.4]} 47. Ke2 {[%clk
0:00:38.6]} 47... Rb4 {[%clk 0:00:04.6]} 48. h4 {[%clk 0:00:38.7]} 48... Kd4
{[%clk 0:00:03.3]} 49. h5 {[%clk 0:00:36.7]} 49... Rb2+ {[%clk 0:00:02.9]} 50.
Kf3 {[%clk 0:00:36.4]} 50... Bd2 {[%clk 0:00:02.9]} 51. Bb3+ {[%clk 0:00:36]}
1-0

[Event "*** Titled Tuesday Blitz"]
[Site "Chess.com"]
[Date "2020.05.05"]
[Round "4"]
[White "fabianvivasz"]
[Black "DanielMieles1985"]
[Result "0-1"]
[WhiteElo "2352"]
[BlackElo "2649"]
[TimeControl "180+1"]
[EndTime "10:41:28 PDT"]
[Termination "DanielMieles1985 won by resignation"]

1. e4 {[%clk 0:03:00.9]} 1... c5 {[%clk 0:00:27.6]} 2. Nf3 {[%clk 0:02:57]} 2...
Nc6 {[%clk 0:00:27.9]} 3. d4 {[%clk 0:02:56.3]} 3... cxd4 {[%clk 0:00:28.8]} 4.
Nxd4 {[%clk 0:02:57.2]} 4... g6 {[%clk 0:00:29.4]} 5. Nc3 {[%clk 0:02:57.3]}
5... Bg7 {[%clk 0:00:29.9]} 6. Be3 {[%clk 0:02:57.9]} 6... Nf6 {[%clk
0:00:30.4]} 7. Bc4 {[%clk 0:02:49.6]} 7... O-O {[%clk 0:00:30.2]} 8. Bb3 {[%clk
0:02:38.4]} 8... d6 {[%clk 0:00:30.1]} 9. f3 {[%clk 0:02:36.4]} 9... Bd7 {[%clk
0:00:29.9]} 10. Qd2 {[%clk 0:02:31.7]} 10... Qa5 {[%clk 0:00:30.3]} 11. O-O-O
{[%clk 0:02:25.9]} 11... Rfc8 {[%clk 0:00:30.5]} 12. Kb1 {[%clk 0:02:24.1]}
12... Ne5 {[%clk 0:00:30.7]} 13. Bh6 {[%clk 0:02:11.6]} 13... Bxh6 {[%clk
0:00:28.7]} 14. Qxh6 {[%clk 0:02:12.5]} 14... Rxc3 {[%clk 0:00:29.4]} 15. bxc3
{[%clk 0:02:12.1]} 15... Qxc3 {[%clk 0:00:29.9]} 16. h4 {[%clk 0:02:03.7]} 16...
a5 {[%clk 0:00:28.1]} 17. Ne2 {[%clk 0:00:42.7]} 17... Qc5 {[%clk 0:00:18]} 18.
h5 {[%clk 0:00:23.2]} 18... a4 {[%clk 0:00:18]} 19. Bd5 {[%clk 0:00:21.3]} 19...
Qb5+ {[%clk 0:00:14.6]} 20. Ka1 {[%clk 0:00:20]} 20... Qxe2 {[%clk 0:00:15]} 21.
hxg6 {[%clk 0:00:20.1]} 21... Nxg6 {[%clk 0:00:15.3]} 22. Rd2 {[%clk 0:00:13.4]}
22... Qb5 {[%clk 0:00:11.9]} 23. g3 {[%clk 0:00:12.1]} 23... a3 {[%clk
0:00:12.1]} 24. Rb1 {[%clk 0:00:11.4]} 24... Qc5 {[%clk 0:00:10.7]} 25. c4
{[%clk 0:00:10.2]} 25... Ra4 {[%clk 0:00:07.5]} 26. Rxb7 {[%clk 0:00:09.2]}
26... Rb4 {[%clk 0:00:07.3]} 27. Rxb4 {[%clk 0:00:08.1]} 27... Qxb4 {[%clk
0:00:08.2]} 28. Rc2 {[%clk 0:00:08.2]} 28... Nxd5 {[%clk 0:00:06.7]} 29. cxd5
{[%clk 0:00:05.3]} 29... Qd4+ {[%clk 0:00:07]} 30. Kb1 {[%clk 0:00:05]} 30...
Qb4+ {[%clk 0:00:07.1]} 31. Ka1 {[%clk 0:00:05.2]} 31... f6 {[%clk 0:00:04.9]}
32. Qc1 {[%clk 0:00:04.3]} 32... Qd4+ {[%clk 0:00:04.9]} 33. Rc3 {[%clk
0:00:04.4]} 33... Ne5 {[%clk 0:00:03.8]} 34. Qxa3 {[%clk 0:00:03.3]} 34... Nxf3
{[%clk 0:00:04.3]} 35. Kb1 {[%clk 0:00:02.5]} 35... Nd2+ {[%clk 0:00:04.3]} 36.
Kc2 {[%clk 0:00:02.9]} 36... Nxe4 {[%clk 0:00:04.8]} 37. Rd3 {[%clk 0:00:01.5]}
37... Qf2+ {[%clk 0:00:05]} 38. Kb3 {[%clk 0:00:01.5]} 38... Nc5+ {[%clk
0:00:05.5]} 39. Kc4 {[%clk 0:00:01.5]} 39... Nxd3 {[%clk 0:00:04]} 40. Qxd3
{[%clk 0:00:02.4]} 40... Qxa2+ {[%clk 0:00:04.4]} 41. Kd4 {[%clk 0:00:02.3]}
41... Qa4+ {[%clk 0:00:04.2]} 42. Ke3 {[%clk 0:00:02.9]} 42... Qg4 {[%clk
0:00:05]} 43. Kf2 {[%clk 0:00:02.4]} 43... Qf5+ {[%clk 0:00:05.1]} 44. Qxf5
{[%clk 0:00:02.2]} 44... Bxf5 {[%clk 0:00:06]} 45. Ke3 {[%clk 0:00:03.1]} 45...
Kf7 {[%clk 0:00:06.1]} 46. Kf4 {[%clk 0:00:03.7]} 46... Be6 {[%clk 0:00:05.8]}
47. g4 {[%clk 0:00:04.6]} 47... Bxd5 {[%clk 0:00:05.9]} 48. Kf5 {[%clk
0:00:04.6]} 48... Be6+ {[%clk 0:00:05.7]} 49. Kf4 {[%clk 0:00:04.9]} 49... Bxg4
{[%clk 0:00:06.6]} 50. Kxg4 {[%clk 0:00:05.6]} 50... e5 {[%clk 0:00:07]} 51. Kh5
{[%clk 0:00:06.5]} 51... f5 {[%clk 0:00:07]} 0-1